[Event "Klatovy Open-B 2024"]
[Site "Klatovy"]
[Date "2024.07.06"]
[Round "8.1"]
[White "Koper, Stefan"]
[Black "Kaderabek, Jiri"]
[Result "1/2-1/2"]
[ECO "A57"]
[WhiteElo "1845"]
[BlackElo "1984"]
[Annotator "RC"]
[PlyCount "35"]
[EventDate "2024.06.21"]
[EventType "swiss"]
[EventCountry "CZE"]
[SourceTitle "playchess.com"]
[Source "ChessBase"]
[SourceQuality "1"]
[TimeControl "40/7200:0"]

1. d4 {[%emt 0:00:00]} Nf6 {[%emt 0:04:17]} 2. Nf3 {[%emt 0:00:41]} c5 {[%emt 0:00:04]} 3. d5 {[%emt 0:00:00]} g6 {[%emt 0:00:00]} 4. c4 {[%emt 0:00:40]} b5 {[%emt 0:00:04]} 5. cxb5 {[%emt 0:00:00]} a6 {[%emt 0:00:00]} 6. b6 {[%emt 0:00:00]} d6 {[%emt 0:00:30]} 7. Nc3 {[%emt 0:00:00]} Nbd7 {[%emt 0:00:48]} 8. a4 {[%emt 0:00:00]} Qxb6 {[%emt 0:00:00]} 9. a5 {[%emt 0:00:00]} Qb7 {[%emt 0:00:00]} 10. e4 {[%emt 0:00:00]} Bg7 {[%emt 0:00:00]} 11. Be2 {[%emt 0:00:00]} O-O {[%emt 0:02:21]} 12. O-O {[%emt 0:00:00]} Ne8 {[%emt 0:02:11]} 13. Nd2 {[%emt 0:00:00]} Nc7 {[%emt 0:00:21]} 14. Nc4 {[%emt 0:00:00]} Rb8 {[%emt 0:07:34]} 15. Na4 {[%emt 0:03:38]} Nb5 {[%emt 0:05:08]} 16. Nab6 {[%emt 0:00:26]} Nd4 {[%emt 0:05:37]} 17. Rb1 {[%emt 0:04:13]} Nxb6 {[%emt 0:13:51]} 18. Nxb6 {[%emt 1:50:22]} 1/2-1/2

[Event "Klatovy Open-B 2024"]
[Site "Klatovy"]
[Date "2024.07.06"]
[Round "8.2"]
[White "Beran, Jakub"]
[Black "Slansky, Jachym"]
[Result "1/2-1/2"]
[ECO "A29"]
[WhiteElo "1791"]
[BlackElo "1665"]
[Annotator "NA RC"]
[PlyCount "63"]
[EventDate "2024.06.21"]
[EventType "swiss"]
[EventCountry "CZE"]
[SourceTitle "playchess.com"]
[Source "ChessBase"]
[SourceQuality "1"]
[TimeControl "40/7200:0"]

1. c4 {[%emt 0:00:00]} e5 {[%emt 0:00:00]} 2. Nc3 {[%emt 0:00:00]} Nf6 {[%emt 0:00:00]} 3. Nf3 {[%emt 0:00:00]} Nc6 {[%emt 0:00:00]} 4. d3 {[%emt 0:00:00]} d5 {[%emt 0:01:54]} 5. cxd5 {[%emt 0:00:00]} Nxd5 {[%emt 0:00:00]} 6. g3 {[%emt 0:00:08]} Be7 {[%emt 0:02:00]} 7. Bd2 {[%emt 0:02:20]} Nb6 {[%emt 0:00:18]} 8. Bg2 {[%emt 0:00:00]} O-O {[%emt 0:01:19]} 9. O-O {[%emt 0:00:00]} Be6 {[%emt 0:21:23]} 10. b3 {[%emt 0:04:32]} f5 {[%emt 0:02:12]} 11. Qc1 {[%emt 0:03:27]} h6 {[%emt 0:10:04]} 12. Qb2 {[%emt 0:07:19]} Bf6 {[%emt 0:01:43]} 13. Rad1 {[%emt 0:00:14]} Qe7 {[%emt 0:18:38]} 14. Qb1 {[%emt 0:04:26]} Nd4 {[%emt 0:02:06]} 15. e3 {[%emt 0:04:21]} Nxf3+ {[%emt 0:03:09]} 16. Bxf3 {[%emt 0:03:31]} c6 {[%emt 0:01:23]} 17. Ne2 {[%emt 0:00:37]} Rad8 {[%emt 0:09:51]} 18. Bc3 {[%emt 0:02:35]} Nd5 {[%emt 0:11:13]} 19. Bb2 {[%emt 0:02:32]} Qf7 {[%emt 0:09:17]} 20. Bg2 {[%emt 0:15:09]} g5 {[%emt 0:08:59]} 21. e4 {[%emt 0:03:04]} Nb4 {[%emt 0:00:34]} 22. d4 {[%emt 0:00:05]} exd4 {[%emt 0:00:40]} 23. exf5 {[%emt 0:03:07]} Bd5 {[%emt 0:04:48]} 24. Bxd5 {[%emt 0:14:28]} Rxd5 {[%emt 0:01:29]} 25. Bxd4 {[%emt 0:00:45]} Rfd8 {[%emt 0:01:12]} 26. a3 {[%emt 0:04:21]} Bxd4 {[%emt 0:00:57]} 27. Nxd4 {[%emt 0:00:00]} Rxd4 {[%emt 0:00:06]} 28. axb4 {[%emt 0:00:00]} Rxd1 {[%emt 0:00:22]} 29. Rxd1 {[%emt 0:00:00]} Rxd1+ {[%emt 0:00:00]} 30. Qxd1 {[%emt 0:00:00]} Qxf5 {[%emt 0:00:00]} 31. Qd8+ {[%emt 0:00:00]} Qf8 {[%emt 0:01:30]} 32. Qd4 {[%emt 0:03:39]} 1/2-1/2

[Event "Klatovy Open-B 2024"]
[Site "Klatovy"]
[Date "2024.07.06"]
[Round "8.3"]
[White "Svejdar, Pavel"]
[Black "Vojta, Radek"]
[Result "1-0"]
[ECO "B15"]
[WhiteElo "1721"]
[BlackElo "1693"]
[Annotator "NA RC"]
[PlyCount "51"]
[EventDate "2024.06.21"]
[EventType "swiss"]
[EventCountry "CZE"]
[SourceTitle "playchess.com"]
[Source "ChessBase"]
[SourceQuality "1"]
[TimeControl "40/7200:0"]

1. e4 {[%emt 0:00:00]} c6 {[%emt 0:00:00]} 2. d4 {[%emt 0:00:00]} d5 {[%emt 0:00:00]} 3. Nc3 {[%emt 0:00:00]} dxe4 {[%emt 0:00:00]} 4. Nxe4 {[%emt 0:00:00]} Nf6 {[%emt 0:00:00]} 5. Nxf6+ {[%emt 0:00:00]} exf6 {[%emt 0:00:00]} 6. Nf3 {[%emt 0:00:00]} Bd6 {[%emt 0:00:00]} 7. Bd3 {[%emt 0:00:00]} O-O {[%emt 0:00:00]} 8. O-O {[%emt 0:00:00]} Re8 {[%emt 0:00:00]} 9. h3 {[%emt 0:00:00]} Nd7 {[%emt 0:00:00]} 10. c3 {[%emt 0:00:22]} Nf8 {[%emt 0:00:00]} 11. Re1 {[%emt 0:07:52]} Ng6 {[%emt 0:05:40]} 12. Rxe8+ {[%emt 0:06:54]} Qxe8 {[%emt 0:00:00]} 13. Qe2 {[%emt 0:00:00]} Be6 {[%emt 0:02:38]} 14. Qc2 {[%emt 0:05:21]} Qd7 {[%emt 0:00:47]} 15. Bf1 {[%emt 0:04:09]} Re8 {[%emt 0:04:54]} 16. Be3 {[%emt 0:11:07]} Nf4 {[%emt 0:16:17]} 17. Bxf4 {[%emt 0:06:33]} Bxf4 {[%emt 0:00:39]} 18. Re1 {[%emt 0:03:40]} Bd5 {[%emt 0:03:36]} 19. Rxe8+ {[%emt 0:00:00]} Qxe8 {[%emt 0:00:00]} 20. Qf5 {[%emt 0:01:29]} Bd6 {[%emt 0:08:18]} 21. Bd3 {[%emt 0:06:55]} g6 {[%emt 0:08:27]} 22. Qxf6 {[%emt 0:06:08]} Bxf3 {[%emt 0:00:00]} 23. Qxd6 {[%emt 0:00:00]} Qe1+ {[%emt 0:00:00]} 24. Bf1 {[%emt 0:00:00]} Be2 {[%emt 0:00:00]} 25. Qb8+ {[%emt 0:00:00]} Kg7 {[%emt 0:01:25]} 26. Qe5+ {[%emt 0:00:00]} 1-0

[Event "Klatovy Open-B 2024"]
[Site "Klatovy"]
[Date "2024.07.06"]
[Round "8.4"]
[White "Masek, Jan"]
[Black "Brychta, David"]
[Result "1-0"]
[ECO "B23"]
[WhiteElo "1839"]
[BlackElo "2124"]
[Annotator "RC"]
[PlyCount "63"]
[EventDate "2024.06.21"]
[EventType "swiss"]
[EventCountry "CZE"]
[SourceTitle "playchess.com"]
[Source "ChessBase"]
[SourceQuality "1"]
[TimeControl "40/7200:0"]

1. e4 {[%emt 0:03:08]} c5 {[%emt 0:00:00]} 2. Nc3 {[%emt 0:00:00]} Nc6 {[%emt 0:00:00]} 3. Bb5 {[%emt 0:00:00]} Nd4 {[%emt 0:00:00]} 4. Nf3 {[%emt 0:00:00]} a6 {[%emt 0:00:00]} 5. Bd3 {[%emt 0:00:00]} g6 {[%emt 0:00:00]} 6. O-O {[%emt 0:00:00]} Bg7 {[%emt 0:00:00]} 7. Nxd4 {[%emt 0:00:00]} cxd4 {[%emt 0:00:00]} 8. Ne2 {[%emt 0:00:00]} Nf6 {[%emt 0:00:00]} 9. c3 {[%emt 0:00:00]} dxc3 {[%emt 0:00:00]} 10. dxc3 {[%emt 0:00:00]} d6 {[%emt 0:00:00]} 11. Ng3 {[%emt 0:07:38]} O-O {[%emt 0:00:00]} 12. h4 {[%emt 0:02:02]} h5 {[%emt 0:01:38]} 13. Qe2 {[%emt 0:01:48]} Bd7 {[%emt 0:01:38]} 14. Rd1 {[%emt 0:00:00]} Qc7 {[%emt 0:00:02]} 15. Bg5 {[%emt 0:00:00]} Bg4 {[%emt 0:01:32]} 16. f3 {[%emt 0:00:00]} Bd7 {[%emt 0:00:00]} 17. Rd2 {[%emt 0:04:48]} Bc6 {[%emt 0:01:46]} 18. Rad1 {[%emt 0:04:26]} b5 {[%emt 0:00:12]} 19. Qe3 {[%emt 0:09:07]} Kh7 {[%emt 0:01:22]} 20. Bxf6 {[%emt 0:06:45]} Bxf6 {[%emt 0:00:01]} 21. Nxh5 {[%emt 0:00:00]} Bxh4 {[%emt 0:01:48]} 22. Qf4 {[%emt 0:00:31]} Qb6+ {[%emt 0:13:42]} 23. Kf1 {[%emt 0:03:33]} g5 {[%emt 0:21:44]} 24. e5+ {[%emt 0:13:50]} f5 {[%emt 0:00:28]} 25. exf6+ {[%emt 0:00:00]} Kg8 {[%emt 0:00:00]} 26. Qf5 {[%emt 0:00:05]} Rf7 {[%emt 0:00:00]} 27. Qg6+ {[%emt 0:01:06]} Kf8 {[%emt 0:00:00]} 28. fxe7+ {[%emt 0:02:33]} Kxe7 {[%emt 0:00:00]} 29. Re2+ {[%emt 0:00:00]} Kd8 {[%emt 0:00:00]} 30. Qg8+ {[%emt 0:00:08]} Kc7 {[%emt 0:00:00]} 31. Qxf7+ {[%emt 0:00:00]} Bd7 {[%emt 0:00:00]} 32. Nf6 {[%emt 0:00:13]} 1-0

[Event "Klatovy Open-B 2024"]
[Site "Klatovy"]
[Date "2024.07.06"]
[Round "8.6"]
[White "Chmelik, Ladislav"]
[Black "Kolman, Pavel Petr"]
[Result "0-1"]
[ECO "E60"]
[WhiteElo "1795"]
[BlackElo "1582"]
[Annotator "NA RC"]
[PlyCount "108"]
[EventDate "2024.06.21"]
[EventType "swiss"]
[EventCountry "CZE"]
[SourceTitle "playchess.com"]
[Source "ChessBase"]
[SourceQuality "1"]
[TimeControl "40/7200:0"]

1. d4 {[%emt 0:00:00]} Nf6 {[%emt 0:00:00]} 2. Nf3 {[%emt 0:00:00]} c6 {[%emt 0:00:00]} 3. c4 {[%emt 0:00:00]} d6 {[%emt 0:00:22]} 4. Nc3 {[%emt 0:00:49]} g6 {[%emt 0:00:46]} 5. g3 {[%emt 0:00:39]} Bg7 {[%emt 0:00:25]} 6. Bg2 {[%emt 0:00:00]} O-O {[%emt 0:00:00]} 7. O-O {[%emt 0:00:00]} Re8 {[%emt 0:00:33]} 8. e4 {[%emt 0:01:01]} Qc7 {[%emt 0:04:12]} 9. b3 {[%emt 0:05:08]} Nbd7 {[%emt 0:03:36]} 10. Bb2 {[%emt 0:00:00]} e6 {[%emt 0:03:44]} 11. Re1 {[%emt 0:05:47]} b6 {[%emt 0:03:25]} 12. h3 {[%emt 0:09:40]} e5 {[%emt 0:04:52]} 13. Qd2 {[%emt 0:02:10]} Bb7 {[%emt 0:01:39]} 14. d5 {[%emt 0:07:14]} c5 {[%emt 0:06:46]} 15. Nh2 {[%emt 0:01:39]} h5 {[%emt 0:05:55]} 16. f4 {[%emt 0:02:03]} a6 {[%emt 0:06:56]} 17. f5 {[%emt 0:02:48]} b5 {[%emt 0:05:16]} 18. fxg6 {[%emt 0:04:11]} fxg6 {[%emt 0:00:15]} 19. cxb5 {[%emt 0:10:07]} axb5 {[%emt 0:00:00]} 20. Nxb5 {[%emt 0:01:30]} Qb6 {[%emt 0:00:00]} 21. a4 {[%emt 0:02:33]} Ba6 {[%emt 0:00:33]} 22. Bf1 {[%emt 0:07:00]} c4+ {[%emt 0:03:13]} 23. Qe3 {[%emt 0:01:18]} Qxe3+ {[%emt 0:04:17]} 24. Rxe3 {[%emt 0:01:43]} Bxb5 {[%emt 0:00:00]} 25. axb5 {[%emt 0:00:00]} cxb3 {[%emt 0:00:00]} 26. Rxb3 {[%emt 0:05:47]} Nc5 {[%emt 0:00:00]} 27. Re3 {[%emt 0:46:53]} Nfxe4 {[%emt 0:05:22]} 28. Rea3 {[%emt 0:00:00]} Rxa3 {[%emt 0:00:21]} 29. Rxa3 {[%emt 0:00:00]} Rb8 {[%emt 0:01:05]} 30. Kg2 {[%emt 0:00:00]} Nf6 {[%emt 0:06:01]} 31. Nf3 {[%emt 0:00:00]} Bh6 {[%emt 0:02:30]} 32. Nh4 {[%emt 0:00:00]} Kh7 {[%emt 0:02:34]} 33. Ra7+ {[%emt 0:00:00]} Bg7 {[%emt 0:03:11]} 34. Bc4 {[%emt 0:00:00]} Ncd7 {[%emt 0:01:36]} 35. Ba3 {[%emt 0:00:00]} Bf8 {[%emt 0:01:52]} 36. Ra6 {[%emt 0:00:00]} Nb6 {[%emt 0:02:00]} 37. Ra7+ {[%emt 0:00:00]} Kh6 {[%emt 0:02:52]} 38. Rf7 {[%emt 0:00:00]} Nbxd5 {[%emt 0:01:02]} 39. Bc1+ {[%emt 0:00:00]} g5 {[%emt 0:00:00]} 40. Nf3 {[%emt 0:00:00]} Rc8 {[%emt 0:03:35]} 41. Bxd5 {[%emt 1:51:42]} Nxd5 {[%emt 1:59:57]} 42. Bxg5+ {[%emt 0:00:20]} Kg6 {[%emt 0:00:00]} 43. Rd7 {[%emt 0:01:37]} e4 {[%emt 0:00:19]} 44. Ne5+ {[%emt 0:00:00]} Kxg5 {[%emt 0:00:51]} 45. Nf7+ {[%emt 0:00:00]} Kf6 {[%emt 0:00:04]} 46. Nxd6 {[%emt 0:00:00]} Bxd6 {[%emt 0:03:01]} 47. Rxd6+ {[%emt 0:00:00]} Ke5 {[%emt 0:00:00]} 48. Rh6 {[%emt 0:00:00]} Nf6 {[%emt 0:00:21]} 49. g4 {[%emt 0:00:00]} hxg4 {[%emt 0:00:08]} 50. hxg4 {[%emt 0:00:00]} Nxg4 {[%emt 0:00:00]} 51. Rh5+ {[%emt 0:00:00]} Kd4 {[%emt 0:00:03]} 52. Kg3 {[%emt 0:00:00]} Nf6 {[%emt 0:00:00]} 53. Rf5 {[%emt 0:00:00]} Nd5 {[%emt 0:00:00]} 54. Kf2 {[%emt 0:00:00]} Rb8 {[%emt 0:00:26]} 0-1

[Event "Klatovy Open-B 2024"]
[Site "Klatovy"]
[Date "2024.07.06"]
[Round "8.7"]
[White "Mojzisova, Barbora"]
[Black "Vo, Daniel"]
[Result "1-0"]
[ECO "B13"]
[WhiteElo "1535"]
[BlackElo "1705"]
[Annotator "NA RC"]
[PlyCount "47"]
[EventDate "2024.06.21"]
[EventType "swiss"]
[EventCountry "CZE"]
[SourceTitle "playchess.com"]
[Source "ChessBase"]
[SourceQuality "1"]
[TimeControl "40/7200:0"]

1. e4 {[%emt 0:00:00]} c6 {[%emt 0:00:00]} 2. Nf3 {[%emt 0:00:00]} d5 {[%emt 0:00:00]} 3. exd5 {[%emt 0:00:00]} cxd5 {[%emt 0:00:00]} 4. d4 {[%emt 0:00:00]} Bg4 {[%emt 0:00:00]} 5. Be2 {[%emt 0:00:00]} Bxf3 {[%emt 0:00:00]} 6. Bxf3 {[%emt 0:00:00]} Nc6 {[%emt 0:00:00]} 7. Nc3 {[%emt 0:00:00]} e6 {[%emt 0:00:41]} 8. O-O {[%emt 0:00:43]} h6 {[%emt 0:03:18]} 9. Re1 {[%emt 0:02:53]} Nf6 {[%emt 0:00:17]} 10. Bf4 {[%emt 0:01:31]} Be7 {[%emt 0:02:28]} 11. Be5 {[%emt 0:07:19]} O-O {[%emt 0:03:08]} 12. Ne2 {[%emt 0:05:43]} Nd7 {[%emt 0:02:55]} 13. Bg3 {[%emt 0:04:20]} Nb6 {[%emt 0:04:49]} 14. c3 {[%emt 0:03:14]} Rc8 {[%emt 0:05:55]} 15. Qd3 {[%emt 0:04:03]} Nc4 {[%emt 0:05:00]} 16. b3 {[%emt 0:03:20]} Nb6 {[%emt 0:02:34]} 17. Nf4 {[%emt 0:01:51]} g5 {[%emt 0:13:01]} 18. Rxe6 {[%emt 0:24:14]} fxe6 {[%emt 0:04:12]} 19. Qg6+ {[%emt 0:00:00]} Kh8 {[%emt 0:00:00]} 20. Qxh6+ {[%emt 0:00:00]} Kg8 {[%emt 0:00:00]} 21. Nxe6 {[%emt 0:02:35]} Rf7 {[%emt 0:01:54]} 22. Qg6+ {[%emt 0:00:00]} Kh8 {[%emt 0:00:19]} 23. Nxd8 {[%emt 0:00:00]} Nxd8 {[%emt 0:00:00]} 24. Be5+ {[%emt 0:00:00]} 1-0

[Event "Klatovy Open-B 2024"]
[Site "Klatovy"]
[Date "2024.07.06"]
[Round "8.8"]
[White "Trejbal, Jindrich"]
[Black "Rezac, Jindrich"]
[Result "1-0"]
[ECO "A36"]
[WhiteElo "1953"]
[BlackElo "1875"]
[Annotator "NA RC"]
[PlyCount "55"]
[EventDate "2024.06.21"]
[EventType "swiss"]
[EventCountry "CZE"]
[SourceTitle "playchess.com"]
[Source "ChessBase"]
[SourceQuality "1"]
[TimeControl "40/7200:0"]

1. e4 {[%emt 0:00:00]} c5 {[%emt 0:05:13]} 2. c4 {[%emt 0:00:00]} Nc6 {[%emt 0:00:00]} 3. d3 {[%emt 0:00:00]} d6 {[%emt 0:00:28]} 4. Nc3 {[%emt 0:00:00]} e5 {[%emt 0:00:02]} 5. g3 {[%emt 0:00:00]} g6 {[%emt 0:01:51]} 6. Bg2 {[%emt 0:00:00]} Bg7 {[%emt 0:00:09]} 7. Nge2 {[%emt 0:00:59]} Nge7 {[%emt 0:00:16]} 8. Nd5 {[%emt 0:03:02]} Nxd5 {[%emt 0:06:35]} 9. cxd5 {[%emt 0:01:53]} Nd4 {[%emt 0:00:00]} 10. Nxd4 {[%emt 0:00:31]} cxd4 {[%emt 0:00:14]} 11. f4 {[%emt 0:02:05]} f6 {[%emt 0:04:31]} 12. fxe5 {[%emt 0:01:26]} fxe5 {[%emt 0:04:02]} 13. O-O {[%emt 0:02:07]} Qe7 {[%emt 0:01:26]} 14. Bd2 {[%emt 0:06:34]} Rf8 {[%emt 0:03:32]} 15. Qa4+ {[%emt 0:07:40]} Qd7 {[%emt 0:04:42]} 16. Qa3 {[%emt 0:07:30]} Rxf1+ {[%emt 0:05:44]} 17. Rxf1 {[%emt 0:01:43]} b6 {[%emt 0:08:17]} 18. Bb4 {[%emt 0:00:51]} Bf8 {[%emt 0:02:49]} 19. b3 {[%emt 0:12:02]} Be7 {[%emt 0:02:43]} 20. Qc1 {[%emt 0:03:10]} Ba6 {[%emt 0:07:25]} 21. Bh3 {[%emt 0:03:03]} Qxh3 {[%emt 0:10:06]} 22. Qc6+ {[%emt 0:00:00]} Qd7 {[%emt 0:01:31]} 23. Qxa8+ {[%emt 0:00:00]} Bc8 {[%emt 0:00:00]} 24. Rc1 {[%emt 0:02:03]} Kd8 {[%emt 0:00:01]} 25. Qb8 {[%emt 0:10:21]} Qb7 {[%emt 0:10:54]} 26. Bxd6 {[%emt 0:03:07]} Qxb8 {[%emt 0:00:03]} 27. Bxb8 {[%emt 0:00:00]} Ba6 {[%emt 0:01:14]} 28. Rd1 {[%emt 0:02:27]} 1-0

[Event "Klatovy Open-B 2024"]
[Site "Klatovy"]
[Date "2024.07.06"]
[Round "8.9"]
[White "Martinek, Lukas"]
[Black "Stastny, Matej"]
[Result "1-0"]
[ECO "C29"]
[WhiteElo "1698"]
[BlackElo "1674"]
[Annotator "NA RC"]
[PlyCount "51"]
[EventDate "2024.06.21"]
[EventType "swiss"]
[EventCountry "CZE"]
[SourceTitle "playchess.com"]
[Source "ChessBase"]
[SourceQuality "1"]
[TimeControl "40/7200:0"]

1. e4 {[%emt 0:00:00]} e5 {[%emt 0:00:00]} 2. Nc3 {[%emt 0:00:42]} Nf6 {[%emt 0:00:00]} 3. f4 {[%emt 0:00:57]} d5 {[%emt 0:00:00]} 4. fxe5 {[%emt 0:00:53]} Nxe4 {[%emt 0:00:00]} 5. Qf3 {[%emt 0:00:37]} f5 {[%emt 0:00:00]} 6. exf6 {[%emt 0:05:21]} Nxf6 {[%emt 0:00:00]} 7. d4 {[%emt 0:10:04]} Nc6 {[%emt 0:02:33]} 8. Bb5 {[%emt 0:09:54]} Be7 {[%emt 0:02:26]} 9. Bxc6+ {[%emt 0:05:27]} bxc6 {[%emt 0:01:34]} 10. Qg3 {[%emt 0:02:54]} O-O {[%emt 0:01:43]} 11. Nf3 {[%emt 0:02:59]} Ne4 {[%emt 0:19:33]} 12. Nxe4 {[%emt 0:03:21]} dxe4 {[%emt 0:01:46]} 13. Ng5 {[%emt 0:10:20]} h6 {[%emt 0:02:19]} 14. Qb3+ {[%emt 0:01:14]} Qd5 {[%emt 0:05:50]} 15. Nxe4 {[%emt 0:00:20]} Qxb3 {[%emt 0:03:53]} 16. cxb3 {[%emt 0:00:00]} Ba6 {[%emt 0:01:11]} 17. Be3 {[%emt 0:16:56]} Bb4+ {[%emt 0:03:27]} 18. Nc3 {[%emt 0:01:05]} Rae8 {[%emt 0:03:12]} 19. Kd2 {[%emt 0:00:06]} c5 {[%emt 0:04:27]} 20. dxc5 {[%emt 0:02:10]} Rd8+ {[%emt 0:01:14]} 21. Kc2 {[%emt 0:05:21]} Rd3 {[%emt 0:04:09]} 22. Rhe1 {[%emt 0:02:16]} Rfd8 {[%emt 0:13:04]} 23. a3 {[%emt 0:03:37]} Bxc3 {[%emt 0:06:19]} 24. bxc3 {[%emt 0:00:00]} Bb7 {[%emt 0:00:28]} 25. Bd4 {[%emt 0:01:35]} Ba6 {[%emt 0:01:55]} 26. Re7 {[%emt 0:00:29]} 1-0

[Event "Klatovy Open-B 2024"]
[Site "Klatovy"]
[Date "2024.07.06"]
[Round "8.10"]
[White "Bukvaj, Jan"]
[Black "Kusova, Nikola"]
[Result "1-0"]
[ECO "D32"]
[WhiteElo "1652"]
[BlackElo "1696"]
[Annotator "NA RC"]
[PlyCount "43"]
[EventDate "2024.06.21"]
[EventType "swiss"]
[EventCountry "CZE"]
[SourceTitle "playchess.com"]
[Source "ChessBase"]
[SourceQuality "1"]
[TimeControl "40/7200:0"]

1. c4 {[%emt 0:00:00]} e6 {[%emt 0:00:00]} 2. Nc3 {[%emt 0:00:00]} d5 {[%emt 0:00:00]} 3. d4 {[%emt 0:00:00]} c5 {[%emt 0:00:00]} 4. Nf3 {[%emt 0:00:00]} Nc6 {[%emt 0:00:00]} 5. Bf4 {[%emt 0:07:25]} Nf6 {[%emt 0:01:46]} 6. e3 {[%emt 0:01:17]} a6 {[%emt 0:00:28]} 7. Rc1 {[%emt 0:02:18]} dxc4 {[%emt 0:00:24]} 8. Bxc4 {[%emt 0:03:31]} b5 {[%emt 0:00:00]} 9. Be2 {[%emt 0:00:11]} Bb7 {[%emt 0:02:02]} 10. O-O {[%emt 0:01:02]} Be7 {[%emt 0:02:11]} 11. dxc5 {[%emt 0:01:37]} Bxc5 {[%emt 0:03:12]} 12. Nxb5 {[%emt 0:02:54]} axb5 {[%emt 0:06:56]} 13. Rxc5 {[%emt 0:00:00]} Ne4 {[%emt 0:02:09]} 14. Qxd8+ {[%emt 0:01:19]} Rxd8 {[%emt 0:00:00]} 15. Rcc1 {[%emt 0:02:27]} b4 {[%emt 0:07:40]} 16. Bb5 {[%emt 0:02:51]} Rc8 {[%emt 0:11:36]} 17. Ne5 {[%emt 0:00:46]} g5 {[%emt 0:06:15]} 18. Nxc6 {[%emt 0:01:11]} Bxc6 {[%emt 0:06:48]} 19. Bxc6+ {[%emt 0:00:04]} Ke7 {[%emt 0:00:00]} 20. Bxe4 {[%emt 0:00:00]} gxf4 {[%emt 0:00:00]} 21. Rxc8 {[%emt 0:00:00]} Rxc8 {[%emt 0:00:00]} 22. exf4 {[%emt 0:00:21]} 1-0

[Event "Klatovy Open-B 2024"]
[Site "Klatovy"]
[Date "2024.07.06"]
[Round "8.11"]
[White "Kroulik, Stepan"]
[Black "Jelinek, Jan"]
[Result "0-1"]
[ECO "C01"]
[WhiteElo "1688"]
[BlackElo "1662"]
[Annotator "NA RC"]
[PlyCount "122"]
[EventDate "2024.06.21"]
[EventType "swiss"]
[EventCountry "CZE"]
[SourceTitle "playchess.com"]
[Source "ChessBase"]
[SourceQuality "1"]
[TimeControl "40/7200:0"]

1. e4 {[%emt 0:00:00]} c5 {[%emt 2:00:00]} 2. Nf3 {[%emt 0:00:00]} e6 {[%emt 0:00:00]} 3. d4 {[%emt 0:00:00]} d5 {[%emt 0:00:00]} 4. exd5 {[%emt 0:00:00]} exd5 {[%emt 0:00:00]} 5. Bb5+ {[%emt 0:00:00]} Nc6 {[%emt 0:00:00]} 6. O-O {[%emt 0:00:00]} Be7 {[%emt 0:00:00]} 7. dxc5 {[%emt 0:00:00]} Bxc5 {[%emt 0:00:00]} 8. Re1+ {[%emt 0:00:00]} Nge7 {[%emt 0:00:00]} 9. Nbd2 {[%emt 0:02:05]} Qb6 {[%emt 0:00:00]} 10. Qe2 {[%emt 0:00:38]} Bxf2+ {[%emt 0:00:00]} 11. Qxf2 {[%emt 0:00:28]} Qxb5 {[%emt 0:00:00]} 12. Nb3 {[%emt 0:01:53]} O-O {[%emt 0:00:00]} 13. Be3 {[%emt 0:09:42]} b6 {[%emt 0:00:00]} 14. Rad1 {[%emt 0:06:11]} Be6 {[%emt 0:00:00]} 15. Nfd4 {[%emt 0:06:18]} Nxd4 {[%emt 0:00:00]} 16. Rxd4 {[%emt 0:00:15]} Nf5 {[%emt 0:00:00]} 17. Rf4 {[%emt 0:01:35]} Nxe3 {[%emt 0:00:00]} 18. Rxe3 {[%emt 0:00:01]} Rae8 {[%emt 0:00:00]} 19. Rg3 {[%emt 0:02:14]} Bc8 {[%emt 0:00:00]} 20. h4 {[%emt 0:02:25]} Re2 {[%emt 0:00:00]} 21. Qd4 {[%emt 0:00:09]} Re1+ {[%emt 0:00:00]} 22. Kh2 {[%emt 0:00:00]} g6 {[%emt 0:00:00]} 23. h5 {[%emt 0:01:18]} Re6 {[%emt 0:00:00]} 24. Qc3 {[%emt 0:04:46]} Qc6 {[%emt 0:00:00]} 25. hxg6 {[%emt 0:08:08]} hxg6 {[%emt 0:00:00]} 26. Qd3 {[%emt 0:01:12]} Re4 {[%emt 0:00:00]} 27. Nd4 {[%emt 0:01:37]} Qe8 {[%emt 0:00:00]} 28. Rxe4 {[%emt 0:03:20]} dxe4 {[%emt 0:00:00]} 29. Qe3 {[%emt 0:01:21]} Kg7 {[%emt 0:00:00]} 30. Qc3 {[%emt 0:00:36]} Rh8+ {[%emt 0:00:00]} 31. Kg1 {[%emt 0:00:00]} f6 {[%emt 0:00:00]} 32. Ne2 {[%emt 0:00:35]} Qf7 {[%emt 0:00:00]} 33. Nf4 {[%emt 0:00:28]} Bf5 {[%emt 0:00:00]} 34. a3 {[%emt 0:00:29]} Qd7 {[%emt 0:00:00]} 35. Kf2 {[%emt 0:00:28]} Rh4 {[%emt 0:00:00]} 36. Ke3 {[%emt 0:00:51]} Qd6 {[%emt 0:00:00]} 37. Ne2 {[%emt 0:00:00]} Kh6 {[%emt 0:00:00]} 38. Qd4 {[%emt 0:00:48]} Qe7 {[%emt 0:00:00]} 39. Nc3 {[%emt 0:00:58]} g5 {[%emt 0:00:00]} 40. Nd5 {[%emt 0:00:14]} Qe5 {[%emt 0:00:00]} 41. Qxe5 {[%emt 2:01:39]} fxe5 {[%emt 1:55:39]} 42. Ne7 {[%emt 0:00:30]} Bh7 {[%emt 0:00:00]} 43. Nc6 {[%emt 0:00:12]} g4 {[%emt 0:00:00]} 44. Nxe5 {[%emt 0:00:37]} Kg5 {[%emt 0:00:00]} 45. Nf7+ {[%emt 0:00:53]} Kf5 {[%emt 0:00:00]} 46. Nd6+ {[%emt 0:00:00]} Ke5 {[%emt 0:00:00]} 47. Nc8 {[%emt 0:00:00]} Bf5 {[%emt 0:00:00]} 48. Nxa7 {[%emt 0:00:00]} Rh6 {[%emt 0:00:00]} 49. Nc6+ {[%emt 0:00:03]} Rxc6 {[%emt 0:00:00]} 50. c3 {[%emt 0:00:10]} Rd6 {[%emt 0:00:00]} 51. Ke2 {[%emt 0:00:05]} Kf4 {[%emt 0:00:00]} 52. Re3 {[%emt 0:00:00]} Rd3 {[%emt 0:00:00]} 53. g3+ {[%emt 0:00:00]} Ke5 {[%emt 0:00:00]} 54. Rxd3 {[%emt 0:00:00]} exd3+ {[%emt 0:00:00]} 55. Ke3 {[%emt 0:00:00]} b5 {[%emt 0:00:00]} 56. b3 {[%emt 0:00:00]} Kd5 {[%emt 0:00:00]} 57. a4 {[%emt 0:00:00]} bxa4 {[%emt 0:00:00]} 58. bxa4 {[%emt 0:00:00]} Kc4 {[%emt 0:00:00]} 59. Kd2 {[%emt 0:00:00]} Bh7 {[%emt 0:00:00]} 60. Ke3 {[%emt 0:00:00]} Kxc3 {[%emt 0:00:00]} 61. a5 {[%emt 0:00:00]} d2 {[%emt 0:00:00]} 0-1